bitfinex/quotes_SOLUSD_20230116
["timestamp","ask_amount","ask_price","bid_price","bid_amount"]
[1673886538366,20.0,23.1,23.079,20.0]
[1673886538570,20.0,23.1,23.08,17.0]
[1673886538792,20.0,23.1,23.08,78.49115727]
[1673886539118,20.0,23.1,23.081,61.49115727]
[1673886539304,116.0967,23.101,23.082,17.0]
[1673886539514,116.0967,23.101,23.082,78.49115727]
[1673886539727,116.0967,23.101,23.082,32.76846778]
[1673886539952,116.0967,23.101,23.083,45.72268949]
[1673886540180,116.0967,23.101,23.084,17.0]
[1673886540398,32.48,23.107,23.084,63.37062777]
[1673886540591,20.0,23.113,23.085,65.72268949]
[1673886540791,32.47,23.113,23.086,21.99803]
[1673886541008,20.0,23.126,23.086,21.99803]
[1673886541009,52.45,23.126,23.087,4.99781]
[1673886541226,113.4894,23.125,23.088,37.0]
[1673886541442,20.0,23.124,23.089,4.99738]
[1673886541648,20.0,23.124,23.09,17.0]
[1673886541859,32.46,23.123,23.09,17.0]
[1673886542174,32.46,23.123,23.091,89.05816215]
[1673886542491,20.0,23.122,23.092,17.0]
[1673886542682,20.0,23.122,23.092,60.33547266]
[1673886542893,32.46,23.121,23.092,17.0]
[1673886543128,32.46,23.121,23.083,43.33547266]
[1673886543450,20.0,23.12,23.088,15.76846778]
[1673886543941,32.46,23.119,23.088,15.76846778]
[1673886544360,32.46,23.119,23.084,65.72268949]
[1673886544595,32.46,23.119,23.086,20.0]
[1673886544596,20.0,23.118,23.086,20.0]
[1673886544803,32.46,23.119,23.087,21.99781]
[1673886545014,32.45,23.126,23.088,4.9976]
[1673886545329,394.3,23.164,23.088,4.9976]
[1673886545330,20.0,23.124,23.09,20.0]
[1673886545548,52.46,23.124,23.091,21.99695]
[1673886545729,52.46,23.124,23.092,4.99673]
[1673886545941,52.46,23.124,23.093,17.0]
[1673886546169,32.45,23.126,23.094,4.9963]
[1673886546392,32.45,23.126,23.096,20.0]
[1673886546693,32.45,23.126,23.098,20.0]
[1673886546889,32.46,23.124,23.099,17.0]
[1673886547108,32.46,23.124,23.1,20.0]
[1673886547309,32.46,23.124,23.101,17.0]
[1673886547522,32.44,23.132,23.101,37.76324778]
[1673886547724,149.9969,23.132,23.101,83.48593727]
[1673886547934,20.0,23.131,23.102,15.76846778]
[1673886548142,20.0,23.131,23.103,17.0]
[1673886548385,32.45,23.13,23.103,17.0]
[1673886548579,32.45,23.13,23.104,15.76846778]
[1673886548776,32.45,23.13,23.105,17.0]
[1673886549110,32.45,23.13,23.105,32.76846778]
[1673886551213,52.45,23.131,23.105,32.76846778]
[1673886551530,52.45,23.131,23.106,20.0]
[1673886551747,52.45,23.131,23.107,17.0]
[1673886551938,52.45,23.131,23.106,15.76846778]
[1673886552152,52.45,23.131,23.107,17.0]
[1673886552584,52.45,23.131,23.107,32.76846778]
[1673886553011,32.45,23.131,23.107,32.76846778]
[1673886553200,32.44,23.137,23.108,24.99327]
[1673886553418,32.43,23.139,23.109,21.99305]
[1673886553631,20.0,23.138,23.11,20.0]
[1673886553847,20.0,23.138,23.111,17.0]
[1673886554170,143.1025,23.137,23.111,121.82662993]
[1673886554381,110.6625,23.137,23.112,124.82662993]
[1673886554598,110.6625,23.137,23.113,17.0]
[1673886554790,110.6625,23.137,23.114,20.0]
[1673886554996,110.6625,23.137,23.115,17.0]
[1673886555206,20.0,23.136,23.115,17.0]
[1673886555529,20.0,23.136,23.115,32.76846778]
[1673886555736,20.0,23.136,23.112,45.72268949]
[1673886555943,32.44,23.135,23.112,45.72268949]
[1673886556266,20.0,23.134,23.097,21.98]
[1673886556480,20.0,23.134,23.102,20.0]
[1673886556680,32.44,23.133,23.103,4.99435]
[1673886556897,20.0,23.132,23.103,4.99435]
[1673886557220,20.0,23.132,23.103,50.71703949]
[1673886557531,32.45,23.131,23.105,20.0]
[1673886557934,32.45,23.131,23.106,32.76846778]
[1673886558362,32.45,23.131,23.107,15.76846778]
[1673886558775,32.45,23.131,23.108,17.0]
[1673886559212,32.45,23.131,23.109,15.76846778]
[1673886559420,32.45,23.131,23.11,17.0]
[1673886560470,32.45,23.131,23.111,31.53693556]
[1673886560786,32.44,23.133,23.112,17.0]
[1673886561197,32.44,23.133,23.112,32.76846778]
[1673886561618,32.44,23.133,23.112,17.0]
[1673886561832,32.44,23.133,23.104,20.0]
[1673886562027,32.44,23.133,23.103,45.72268949]
[1673886562239,20.0,23.132,23.101,59.10394044]
[1673886562450,20.0,23.132,23.102,15.76846778]
[1673886562696,32.45,23.131,23.102,15.76846778]
[1673886562889,32.45,23.131,23.103,20.0]
[1673886563106,32.45,23.131,23.104,17.0]
[1673886563295,32.45,23.131,23.104,32.76846778]
[1673886563497,32.45,23.131,23.105,15.76846778]
[1673886563712,32.45,23.131,23.106,17.0]
[1673886564139,32.45,23.131,23.107,15.76846778]
[1673886564367,32.45,23.131,23.108,17.0]
[1673886564761,32.45,23.131,23.109,15.76846778]
[1673886564973,32.45,23.131,23.11,17.0]
[1673886565407,32.45,23.131,23.11,32.76846778]
[1673886566270,20.0,23.136,23.11,32.76846778]
[1673886566271,32.44,23.133,23.11,32.76846778]
[1673886566465,20.0,23.134,23.11,32.76846778]
[1673886566678,32.44,23.132,23.11,32.76846778]
[1673886566883,32.44,23.133,23.11,32.76846778]
[1673886567095,20.0,23.13,23.11,32.76846778]
[1673886567612,32.45,23.129,23.11,32.76846778]
[1673886569517,20.0,23.128,23.11,32.76846778]
[1673886570053,20.0,23.126,23.11,32.76846778]
[1673886570455,20.0,23.126,23.11,17.0]
[1673886570884,20.0,23.126,23.108,15.76846778]
[1673886571100,20.0,23.124,23.089,12.22]
[1673886571309,20.0,23.124,23.093,15.76846778]
[1673886571519,20.0,23.122,23.093,15.76846778]
[1673886571921,32.46,23.121,23.093,15.76846778]
[1673886572138,20.0,23.12,23.093,15.76846778]
[1673886572672,32.46,23.119,23.091,15.76846778]
[1673886572866,32.46,23.119,23.092,20.0]
[1673886573294,32.46,23.119,23.093,15.76846778]
[1673886574563,20.0,23.122,23.093,15.76846778]
[1673886574782,20.0,23.122,23.095,20.0]
[1673886575179,32.46,23.121,23.096,17.0]
[1673886575404,32.46,23.122,23.096,17.0]
[1673886575603,32.46,23.123,23.096,53.11007266]
[1673886576034,32.46,23.123,23.097,20.0]
[1673886576245,20.0,23.124,23.098,17.0]
[1673886579078,20.0,23.124,23.099,15.76846778]
[1673886579294,20.0,23.124,23.1,17.0]
[1673886579834,20.0,23.124,23.101,15.76846778]
[1673886580038,20.0,23.124,23.102,17.0]
[1673886580447,32.46,23.123,23.103,31.53693556]
[1673886580657,32.46,23.123,23.104,17.0]
[1673886580878,32.46,23.123,23.103,15.76846778]
[1673886581093,20.0,23.122,23.103,15.76846778]
[1673886581495,32.46,23.121,23.103,15.76846778]
[1673886582148,20.0,23.12,23.103,15.76846778]
[1673886582776,32.46,23.121,23.103,15.76846778]
[1673886582969,20.0,23.122,23.103,15.76846778]
[1673886583399,20.0,23.122,23.104,17.0]
[1673886584877,20.0,23.122,23.103,17.0]
[1673886585293,20.0,23.122,23.103,35.161555]
[1673886587925,20.0,23.122,23.103,18.161555]
[1673886588139,20.0,23.122,23.09,60.65]
[1673886588140,32.46,23.121,23.09,60.65]
[1673886588447,20.0,23.12,23.09,60.65]
[1673886588658,20.0,23.12,23.091,20.0]
[1673886588858,32.46,23.119,23.091,20.0]
[1673886589400,20.0,23.118,23.09,60.65]
[1673886589921,20.0,23.116,23.09,60.65]
[1673886591602,20.0,23.116,23.091,17.0]
[1673886592001,20.0,23.116,23.09,60.65]
[1673886592972,32.47,23.115,23.09,60.65]
[1673886593160,20.0,23.114,23.09,60.65]
[1673886593580,20.0,23.112,23.09,60.65]
[1673886593809,20.0,23.112,23.09,78.811555]
[1673886594124,20.0,23.112,23.091,17.0]
[1673886594544,20.0,23.112,23.091,53.32311]
[1673886594735,20.0,23.112,23.091,18.161555]
[1673886596122,32.47,23.113,23.092,17.0]
[1673886596544,116.3747,23.114,23.092,37.55448814]
[1673886596855,116.3747,23.114,23.093,20.0]
[1673886597073,116.3747,23.114,23.094,17.0]
[1673886597264,116.3747,23.114,23.094,37.55448814]
[1673886597470,20.0,23.113,23.095,20.55448814]
[1673886597684,20.0,23.113,23.096,17.0]
[1673886598219,20.0,23.113,23.096,35.52836234]
[1673886598419,20.0,23.113,23.096,17.0]
[1673886599266,116.3747,23.114,23.096,17.0]
[1673886600114,116.3747,23.114,23.096,35.52836234]
[1673886600327,111.3633,23.117,23.096,35.52836234]
[1673886600857,52.45,23.126,23.096,68.505955]
[1673886601050,132.1269,23.124,23.096,18.52836234]
[1673886601255,20.0,23.122,23.096,18.52836234]
[1673886601670,20.0,23.12,23.096,18.52836234]
[1673886602430,20.0,23.12,23.097,17.0]
[1673886603058,20.0,23.12,23.098,18.52836234]
[1673886603269,20.0,23.12,23.099,17.0]
[1673886603685,20.0,23.12,23.099,35.52836234]
[1673886605669,20.0,23.122,23.099,35.52836234]
[1673886606951,20.0,23.122,23.099,18.52836234]
[1673886608207,20.0,23.122,23.1,17.0]
[1673886609760,20.0,23.122,23.1,35.52836234]
[1673886610947,112.1269,23.124,23.1,35.52836234]
[1673886611667,112.1269,23.124,23.101,20.0]
[1673886611878,112.5001,23.127,23.103,20.0]
[1673886612079,112.5001,23.127,23.104,17.0]
[1673886612285,112.5001,23.127,23.104,35.52836234]
[1673886612518,20.0,23.126,23.105,37.05672468]
[1673886612735,20.0,23.126,23.106,17.0]
[1673886615882,20.0,23.126,23.106,35.52836234]
[1673886616937,32.45,23.125,23.106,17.0]
[1673886617127,32.45,23.125,23.102,18.52836234]
[1673886617338,32.45,23.125,23.092,109.872]
[1673886617548,20.0,23.124,23.092,109.872]
[1673886617985,20.0,23.122,23.092,109.872]
[1673886618391,32.46,23.121,23.092,109.872]
[1673886618602,32.46,23.121,23.094,20.0]
[1673886618603,20.0,23.119,23.094,20.0]
[1673886618826,20.0,23.119,23.095,17.0]
[1673886619039,20.0,23.119,23.095,35.52836234]
[1673886619765,110.6701,23.12,23.095,35.52836234]
[1673886619766,110.6701,23.12,23.096,18.52836234]
[1673886619978,110.6701,23.12,23.098,20.0]
[1673886620510,110.6701,23.12,23.099,17.0]
[1673886620830,110.6701,23.12,23.097,17.0]
[1673886621046,20.0,23.119,23.097,17.0]
[1673886621238,20.0,23.119,23.097,35.52836234]
[1673886623029,110.6701,23.12,23.097,35.52836234]
[1673886623245,110.6701,23.12,23.091,1.15]
[1673886623436,20.0,23.118,23.09,60.65]
[1673886623857,20.0,23.116,23.09,60.65]
[1673886624191,20.0,23.116,23.091,18.52836234]
[1673886624377,20.0,23.116,23.09,60.65]
[1673886624712,32.47,23.115,23.09,60.65]
[1673886624923,20.0,23.114,23.09,60.65]
[1673886625565,20.0,23.112,23.091,18.52836234]
[1673886625869,20.0,23.112,23.092,17.0]
[1673886626791,20.0,23.112,23.091,18.52836234]
[1673886627008,20.0,23.112,23.09,60.65]
[1673886627220,32.47,23.111,23.09,60.65]
[1673886627437,20.0,23.11,23.09,60.65]
[1673886627739,20.0,23.11,23.068,22.43419079]
[1673886627952,165.3323,23.109,23.069,114.0758]
[1673886628163,165.3323,23.109,23.061,22.43419079]
[1673886628164,165.3323,23.109,23.067,18.52836234]
[1673886628380,21.46196354,23.108,23.067,18.52836234]
[1673886628591,20.0,23.107,23.067,18.52836234]
[1673886628811,52.48,23.107,23.067,18.52836234]
[1673886629025,38.46196354,23.106,23.067,18.52836234]
[1673886629423,20.0,23.104,23.062,74.8695]
[1673886629640,20.0,23.104,23.073,18.52836234]
[1673886629856,32.49,23.103,23.073,18.52836234]
[1673886630066,20.0,23.102,23.073,18.52836234]
[1673886631011,20.0,23.102,23.078,17.0]
[1673886632271,32.48,23.106,23.078,17.0]
[1673886632507,52.48,23.108,23.079,20.0]
[1673886632691,52.48,23.108,23.08,17.0]
[1673886632894,20.0,23.108,23.081,20.0]
[1673886633216,52.48,23.11,23.082,17.0]
[1673886633428,20.0,23.108,23.082,17.0]
[1673886635443,52.48,23.108,23.08,17.0]
[1673886636598,52.48,23.108,23.079,18.52836234]
[1673886636809,52.48,23.108,23.069,35.07014283]
[1673886637124,20.0,23.106,23.076,18.52836234]
[1673886637545,75.40392708,23.105,23.062,21.0449]
[1673886637735,53.94196354,23.105,23.074,18.52836234]
[1673886637953,20.0,23.104,23.074,18.52836234]
[1673886638383,20.0,23.104,23.079,20.0]
[1673886638608,20.0,23.104,23.08,17.0]
[1673886639325,20.0,23.104,23.079,18.52836234]
[1673886639536,73.94196354,23.103,23.077,91.0475161]
[1673886639746,20.0,23.102,23.077,91.0475161]
[1673886639966,20.0,23.1,23.077,91.0475161]
[1673886640179,119.1257,23.099,23.077,91.0475161]
[1673886640379,20.0,23.098,23.077,91.0475161]
[1673886640919,41.46196354,23.098,23.077,91.0475161]
[1673886641129,20.0,23.098,23.078,17.0]
[1673886641319,20.0,23.098,23.077,91.0475161]
[1673886641527,42.92392708,23.097,23.077,91.0475161]
[1673886641747,21.46196354,23.097,23.077,91.0475161]
[1673886641958,20.0,23.098,23.077,91.0475161]
[1673886642494,119.1257,23.099,23.078,20.0]
[1673886642684,119.1257,23.099,23.079,17.0]
[1673886642888,110.4247,23.101,23.079,17.0]
[1673886643116,110.4247,23.101,23.079,35.52836234]
[1673886643423,110.4247,23.101,23.08,20.0]
[1673886643634,110.4247,23.101,23.081,17.0]
[1673886644174,52.47,23.112,23.082,37.74425933]
[1673886644491,135.8063,23.111,23.083,17.0]
[1673886644799,73.93196354,23.11,23.083,17.0]
[1673886645625,21.46196354,23.109,23.083,17.0]
[1673886645955,20.0,23.107,23.077,91.0475161]
[1673886646277,20.0,23.107,23.078,20.0]
[1673886646278,21.46196354,23.106,23.078,20.0]
[1673886646465,20.0,23.105,23.078,20.0]
[1673886646879,53.94196354,23.104,23.078,20.0]
[1673886647094,20.0,23.103,23.077,91.0475161]
[1673886647320,20.0,23.103,23.078,17.0]
[1673886647539,20.0,23.103,23.079,20.0]
[1673886647855,20.0,23.103,23.08,17.0]
[1673886648171,21.46196354,23.104,23.081,20.0]
[1673886648365,21.46196354,23.104,23.082,17.0]
[1673886649520,32.48,23.109,23.082,17.0]
[1673886649722,115.8063,23.111,23.083,20.0]
[1673886649931,115.8063,23.111,23.084,17.0]
[1673886650158,115.8063,23.111,23.085,20.0]
[1673886650350,115.8063,23.111,23.086,17.0]
[1673886651006,20.0,23.11,23.086,35.52836234]
[1673886651411,20.0,23.11,23.082,37.74425933]
[1673886651629,21.46196354,23.109,23.065,43.25]
[1673886651950,20.0,23.108,23.078,57.74425933]
[1673886652903,41.46196354,23.108,23.08,17.0]
[1673886653445,41.46196354,23.108,23.078,20.0]
[1673886654782,32.48,23.107,23.079,17.0]
[1673886654997,20.0,23.106,23.079,17.0]
[1673886655732,20.0,23.106,23.08,57.05672468]
[1673886655950,20.0,23.106,23.081,17.0]
[1673886656145,20.0,23.106,23.081,35.52836234]
[1673886656356,20.0,23.106,23.082,18.52836234]
[1673886656687,20.0,23.106,23.083,17.0]
[1673886657213,21.46196354,23.105,23.083,18.52836234]
[1673886657408,20.0,23.104,23.084,17.0]
[1673886657838,21.46196354,23.104,23.084,17.0]
[1673886658159,32.48,23.105,23.084,17.0]
[1673886660134,32.48,23.107,23.084,17.0]
[1673886660990,20.0,23.106,23.084,17.0]
[1673886661513,32.48,23.105,23.084,17.0]
[1673886662145,32.48,23.106,23.084,17.0]
[1673886662354,21.46196354,23.107,23.082,17.0]
[1673886662552,21.46196354,23.107,23.083,20.0]
[1673886662765,53.94196354,23.107,23.084,17.0]
[1673886663204,20.0,23.106,23.084,17.0]
[1673886663411,20.0,23.106,23.083,17.0]
[1673886663728,41.46196354,23.106,23.082,18.52836234]
[1673886663919,41.46196354,23.106,23.077,135.46372686]
[1673886663920,32.48,23.105,23.077,97.71946753]
[1673886664251,20.0,23.104,23.077,97.71946753]
[1673886664666,32.48,23.103,23.078,20.0]
[1673886664874,52.48,23.104,23.077,109.57587844]
[1673886665082,32.49,23.102,23.077,109.57587844]
[1673886665420,20.0,23.101,23.078,20.0]
[1673886665817,132.7997,23.101,23.077,109.57587844]
[1673886666460,132.7997,23.101,23.078,17.0]
[1673886666673,132.7997,23.101,23.079,20.0]
[1673886666884,132.7997,23.101,23.08,17.0]
[1673886667278,112.7997,23.101,23.08,17.0]
[1673886667493,112.7997,23.101,23.08,35.52836234]
[1673886667714,112.7997,23.101,23.081,56.27262167]
[1673886667912,112.7997,23.101,23.081,18.52836234]
[1673886668124,112.7997,23.101,23.082,17.0]
[1673886668754,112.7997,23.101,23.08,17.0]
[1673886668970,112.7997,23.101,23.082,18.52836234]
[1673886669195,112.7997,23.101,23.083,17.0]
[1673886669389,20.0,23.108,23.083,17.0]
[1673886669390,20.0,23.11,23.084,6.14199776]
[1673886669602,147.857,23.124,23.085,17.0]
[1673886669817,147.857,23.124,23.086,10.18516276]
[1673886670010,147.857,23.124,23.088,5.12872671]
[1673886670224,147.857,23.124,23.089,10.77737174]
[1673886670442,147.857,23.124,23.091,4.54632392]
[1673886670654,147.857,23.124,23.09,21.99716]
[1673886670655,115.397,23.124,23.092,21.99673]
[1673886670869,115.397,23.124,23.093,27.6167328]
[1673886671077,115.397,23.124,23.095,6.88536358]
[1673886671394,115.397,23.124,23.097,7.61575952]
[1673886671712,115.397,23.124,23.099,5.73660697]
[1673886671920,115.397,23.124,23.1,37.0]
[1673886672138,115.397,23.124,23.101,5.34186051]
[1673886672340,115.397,23.124,23.102,17.0]
[1673886672653,115.397,23.124,23.103,25.81074192]
[1673886672865,115.397,23.124,23.104,17.0]
[1673886673075,115.397,23.124,23.104,86.22464212]
[1673886673271,115.397,23.124,23.105,69.22464212]
[1673886673482,115.397,23.124,23.106,17.0]
[1673886673691,115.397,23.124,23.106,67.69627978]
[1673886673900,115.397,23.124,23.107,50.69627978]
[1673886674112,115.397,23.124,23.108,17.0]
[1673886674543,115.397,23.124,23.109,50.69627978]
[1673886674755,115.397,23.124,23.11,17.0]
[1673886680236,115.397,23.124,23.11,88.85294312]
[1673886680553,32.45,23.131,23.111,20.0]
[1673886680780,32.44,23.135,23.112,21.62283651]
[1673886681083,20.0,23.134,23.111,50.69627978]
[1673886681283,52.44,23.134,23.111,50.69627978]
[1673886681494,20.0,23.134,23.112,17.0]
[1673886681700,32.44,23.133,23.113,4.0856298]
[1673886681903,143.1951,23.137,23.114,20.0]
[1673886682114,110.7551,23.137,23.115,17.0]
[1673886682324,32.44,23.136,23.115,17.0]
[1673886682637,32.43,23.139,23.117,4.16008009]
[1673886682970,20.0,23.149,23.118,17.0]
[1673886683163,32.44,23.138,23.118,36.10291248]
[1673886683373,32.42,23.148,23.119,19.10291248]
[1673886683589,32.42,23.148,23.12,17.0]
[1673886683797,20.0,23.147,23.12,24.44644228]
[1673886684005,20.0,23.147,23.121,19.10291248]
[1673886684211,32.42,23.146,23.122,17.0]
[1673886684443,32.42,23.146,23.122,22.07366252]
[1673886684761,20.0,23.145,23.123,19.10291248]
[1673886684974,20.0,23.145,23.124,17.0]
[1673886685160,32.43,23.144,23.124,17.0]
[1673886685795,20.0,23.143,23.123,17.0]
[1673886686004,20.0,23.143,23.122,17.0]
[1673886686209,32.43,23.142,23.122,17.0]
[1673886686432,32.43,23.142,23.123,65.81252559]
[1673886686647,32.43,23.142,23.124,17.0]
[1673886687388,32.43,23.142,23.124,63.70961311]
[1673886687914,32.43,23.142,23.125,19.10291248]
[1673886688115,32.43,23.144,23.126,17.0]
[1673886688332,20.0,23.149,23.126,17.0]
[1673886688333,20.0,23.147,23.126,63.70961311]
[1673886688516,32.43,23.143,23.127,65.81252559]
[1673886688730,32.42,23.146,23.128,17.0]
[1673886688941,20.0,23.147,23.128,17.0]
[1673886688942,20.0,23.147,23.128,82.81252559]
[1673886689170,20.0,23.147,23.129,65.81252559]
[1673886689374,20.0,23.147,23.13,17.0]
[1673886689578,20.0,23.147,23.13,36.10291248]
[1673886689784,32.42,23.146,23.131,19.10291248]
[1673886690098,32.42,23.146,23.107,7.48110328]
[1673886690323,32.42,23.146,23.113,19.10291248]
[1673886690533,32.42,23.146,23.115,27.03278298]
[1673886692731,20.0,23.138,23.106,24.26285633]
[1673886692948,20.0,23.138,23.106,4.26285633]
[1673886693164,32.44,23.137,23.105,4.99392]
[1673886693354,32.44,23.137,23.101,109.3062]
[1673886693565,20.0,23.136,23.101,109.3062]
[1673886693983,49.44,23.135,23.095,6.566]
[1673886694317,49.44,23.135,23.094,19.10291248]
[1673886694515,20.0,23.134,23.089,2.35]
[1673886694735,20.0,23.132,23.086,19.10291248]
[1673886695045,5.01007,23.131,23.09,19.10291248]
[1673886695259,37.0,23.13,23.09,19.10291248]
[1673886695465,20.0,23.129,23.09,19.10291248]
[1673886695792,20.0,23.127,23.082,20.0]
[1673886696103,20.0,23.125,23.084,20.0]
[1673886696418,20.0,23.125,23.085,41.10116248]
[1673886696637,20.0,23.123,23.086,20.0]
[1673886696827,20.0,23.122,23.087,17.0]
[1673886697041,20.0,23.121,23.087,41.10072248]
[1673886697262,20.0,23.12,23.088,19.10291248]
[1673886697578,20.0,23.119,23.089,17.0]
[1673886697979,32.46,23.118,23.09,19.10291248]
[1673886698189,20.0,23.117,23.091,17.0]
[1673886698398,137.6791,23.117,23.091,17.0]
[1673886698608,20.0,23.115,23.092,19.10291248]
[1673886698838,20.0,23.115,23.078,20.0]
[1673886699053,150.7995,23.114,23.081,19.10291248]
[1673886699359,150.7995,23.114,23.084,32.70244155]
[1673886699570,150.7995,23.114,23.084,37.70090155]
[1673886699767,118.3295,23.114,23.085,83.05215956]
[1673886699967,118.3295,23.114,23.086,4.99803]
[1673886700183,118.3295,23.114,23.086,97.16438111]
[1673886700421,118.3295,23.114,23.088,20.0]
[1673886700617,118.3295,23.114,23.089,21.99738]
[1673886700827,118.3295,23.114,23.089,95.75373111]
[1673886701038,52.47,23.113,23.079,5.744]
[1673886701259,52.47,23.113,23.09,19.10291248]
[1673886701450,32.47,23.113,23.09,19.10291248]
[1673886701660,32.47,23.113,23.091,20.0]
[1673886702201,118.3295,23.114,23.092,19.10291248]
[1673886702413,118.3295,23.114,23.093,17.0]
[1673886702810,118.3295,23.114,23.094,19.10291248]
[1673886703022,118.3295,23.114,23.095,17.0]
[1673886703449,118.3295,23.114,23.096,19.10291248]
[1673886703663,118.3295,23.114,23.097,17.0]
[1673886704202,118.3295,23.114,23.098,19.10291248]
[1673886704401,118.3295,23.114,23.099,17.0]
[1673886706197,118.3295,23.114,23.099,36.10291248]
[1673886706596,20.0,23.113,23.091,29.14448415]
[1673886706808,52.47,23.113,23.079,113.5865]
[1673886707022,52.47,23.113,23.084,19.10291248]
[1673886708407,20.0,23.111,23.078,20.0]
[1673886708616,20.0,23.111,23.078,39.10291248]
[1673886708818,52.47,23.11,23.078,19.10291248]
[1673886709038,20.0,23.109,23.078,19.10291248]
[1673886709452,20.0,23.107,23.078,19.10291248]
[1673886709660,114.1025,23.106,23.078,19.10291248]
[1673886709877,146.5825,23.106,23.078,19.10291248]
[1673886710107,146.5825,23.106,23.066,113.5865]
[1673886710316,146.5825,23.106,23.071,19.10291248]
[1673886710516,20.0,23.105,23.078,19.10291248]
[1673886710930,32.48,23.104,23.078,19.10291248]
[1673886711153,20.0,23.103,23.078,19.10291248]
[1673886711562,32.49,23.102,23.078,19.10291248]
[1673886712188,20.0,23.1,23.078,19.10291248]
[1673886712635,32.49,23.099,23.078,19.10291248]
[1673886712820,32.49,23.099,23.079,17.0]
[1673886713040,113.6287,23.101,23.079,17.0]
[1673886713367,113.6287,23.101,23.08,19.10291248]
[1673886713575,32.49,23.1,23.081,17.0]
[1673886713785,113.6287,23.101,23.081,17.0]
[1673886713998,113.6287,23.101,23.081,19.10291248]
[1673886714312,20.0,23.099,23.068,20.0]
[1673886714717,32.49,23.098,23.078,19.10291248]
[1673886715244,20.0,23.097,23.078,19.10291248]
[1673886715454,20.0,23.097,23.067,20.0]
[1673886715678,32.49,23.096,23.071,19.10291248]
[1673886715885,20.0,23.095,23.071,19.10291248]
[1673886716105,20.0,23.095,23.077,110.15042858]
[1673886717783,20.0,23.095,23.077,91.0475161]
[1673886717994,20.0,23.095,23.078,17.0]
[1673886718219,50.0,23.091,23.078,17.0]
[1673886718402,20.0,23.09,23.078,17.0]
[1673886720076,50.0,23.091,23.078,17.0]
[1673886720290,50.0,23.091,23.078,36.10291248]
[1673886721355,50.0,23.091,23.077,91.0475161]
[1673886721580,52.5,23.09,23.077,91.0475161]
[1673886722601,20.0,23.089,23.055,117.124]
[1673886723023,53.97196354,23.088,23.06,19.10291248]
[1673886723228,32.51,23.088,23.06,19.10291248]
[1673886723454,20.0,23.087,23.06,19.10291248]
[1673886723986,20.0,23.085,23.06,19.10291248]
[1673886724393,20.0,23.083,23.06,19.10291248]
[1673886724596,20.0,23.083,23.049,118.6592]
[1673886724810,32.51,23.082,23.055,19.10291248]
[1673886725022,32.51,23.082,23.049,118.6592]
[1673886725225,20.0,23.081,23.05,39.10291248]
[1673886725662,32.52,23.08,23.05,39.10291248]
[1673886725856,32.52,23.08,23.059,19.65606323]
[1673886726068,20.0,23.081,23.059,19.65606323]